Cogmind - Beta 11 @@@ ROGUE MODE // 2022.03.24 @ 09:25:05 Player: Happytimes Result: Self-destructed Performance ------------- Evolutions (1) 500 Regions Visited (3) 600 Robots Destroyed (7) 35 Value Destroyed (100) 100 Prototype IDs (0) 0 Alien Tech Used (0) 0 Bonus (0) 0 TOTAL SCORE: 1235 Bonus ------- None Cogmind --------- Core Integrity 390/400 Matter 300/300 Energy 250/250 System Corruption 0% Temperature Cool (0) Movement Walking (120) Location -9/Materials Parts ------- > --- POWER (1) -------- Ion Engine > --- PROPULSION (3) --- Aluminum Leg Aluminum Leg Aluminum Leg > --- UTILITY (3) ------ Small Storage Unit Signal Interpreter > --- WEAPON (2) ------- Mini Grenade Launcher Mining Claw > --- INVENTORY (8) ---- Aluminum Leg Aluminum Leg Hover Unit Hover Unit EM Pulse Gun Datajack Peak State ------------ > --- POWER ------------ Ion Engine > --- PROPULSION ------- Aluminum Leg Aluminum Leg Aluminum Leg > --- UTILITY ---------- Small Storage Unit Sensor Array Signal Interpreter > --- WEAPON ----------- Mini Grenade Launcher Mining Claw > --- INVENTORY -------- Aluminum Leg Aluminum Leg Hover Unit Hover Unit EM Pulse Gun Datajack [Rating: 10] Favorites ----------- Power Ion Engine Engine Ion Engine Propulsion Aluminum Leg Leg Aluminum Leg Utility Small Storage Unit Device Sensor Array Storage Small Storage Unit Processor Signal Interpreter Weapon EM Pulse Gun Energy Gun EM Pulse Gun Launcher Mini Grenade Launcher Slashing Weapon Mining Claw Build | -11 -10 -10 -9 ------- Run | Scr Mat Min Mat Slots Evolved 2 | . . . 2 Power . | . . . . Propulsion 1 | . . . 1 Utility 1 | . . . 1 Weapon . | . . . . Parts Attached 13 | 6 3 1 3 Power 1 | 1 . . . Engine 1 | 1 . . . Core . | . . . . Reactor . | . . . . Propulsion 3 | 2 . . 1 Treads . | . . . . Leg 3 | 2 . . 1 Wheel . | . . . . Hover . | . . . . Flight . | . . . . Utility 5 | 1 2 1 1 Device 2 | . 1 . 1 Storage 1 | 1 . . . Processor 2 | . 1 1 . Hackware . | . . . . Protection . | . . . . Artifact . | . . . . Weapon 4 | 2 1 . 1 Energy Gun 2 | 2 . . . Energy Cannon . | . . . . Ballistic Gun . | . . . . Ballistic Cannon . | . . . . Launcher 1 | . . . 1 Special Weapon . | . . . . Impact Weapon . | . . . . Slashing Weapon 1 | . 1 . . Piercing Weapon . | . . . . Special Melee Weapon . | . . . . Unidentified Prototypes . | . . . . Parts Lost 2 | . 1 . 1 Power . | . . . . Propulsion . | . . . . Utility 1 | . . . 1 Weapon 1 | . 1 . . Highest Loss Streak 1 | . 1 . 1 To Critical Strikes . | . . . . Average Slot Usage (%) 99 | . 97 100 100 Engine 13 | . 14 14 11 Leg 28 | . 28 28 33 Device 9 | . 8 9 11 Storage 13 | . 14 14 11 Processor 5 | . 3 4 11 Energy Gun 17 | . 27 14 9 Slashing Weapon 9 | . . 14 11 Naked Turns . | . . . . Heaviest Build 15 | 14 15 15 15 Greatest Support 30 | 20 20 20 30 Greatest Overweight (x) . | . . . . Average Overweight (x) . | . . . . Largest Inventory Capacity 8 | 8 8 8 8 Average Capacity 7 | 6 8 8 8 Most Carried 8 | 5 8 7 6 Average Carried 5 | 1 5 6 5 Final Capacity 8 | 8 8 8 8 Final Carried 7 | . 5 7 6 Class Distribution -------------------- 100% | Mutant Dominant Class ---------------- Mutant | -10/Materials Mutant | -10/Mines Mutant | -9/Materials Resources | -11 -10 -10 -9 ----------- Run | Scr Mat Min Mat Matter Collected 340 | 203 77 20 40 Remotely . | . . . . Salvage Created 165 | . 79 . 86 Parts 12 | . 7 . 5 Haulers Intercepted . | . . . . Recyclers Shooed . | . . . . Parts Field Recycled . | . . . . Retrieved Matter . | . . . . Parts Self-Destructed . | . . . . Prevented . | . . . . Kills | -11 -10 -10 -9 ------- Run | Scr Mat Min Mat Combat Hostiles Destroyed 2 | . . . 2 AOE 2 | . . . 2 Classes Destroyed 3 | . 1 . 2 Recycler 1 | . . . 1 Watcher 4 | . 3 . 1 Swarmer 2 | . . . 2 Best Kill Streak 4 | . 2 . 4 Combat Bots Only 2 | . . . 2 Max Kills in Single Turn 3 | . 1 . 3 Gunslinging . | . . . . Exploded 2 | . . . 2 Melee . | . . . . Uniques/NPCs Destroyed . | . . . . Combat | -11 -10 -10 -9 -------- Run | Scr Mat Min Mat Damage Taken 203 | . 86 . 117 Core 10 | . . . 10 Absorbed by Shields . | . . . . Core Remaining (%) 100 | 100 . 100 . Volleys Fired 8 | . 5 . 3 Largest 2 | . 2 . 1 Hottest 80 | . 80 . 40 Shots Fired 13 | . 10 . 3 Gun 12 | . 10 . 2 Cannon . | . . . . Launcher 1 | . . . 1 Special . | . . . . Kinetic . | . . . . Thermal . | . . . . Explosive 1 | . . . 1 Electromagnetic 12 | . 10 . 2 Robot Hit Streak 4 | . 4 . 1 Robot Miss Streak 1 | . 1 . 1 Penetration Max . | . . . . Secondary Targets . | . . . . Shots Hit Robots 9 | . 7 . 2 Core Hits 7 | . 3 . 4 Critical Kills . | . . . . Critical Parts Destroyed . | . . . . Critical Strikes . | . . . . Melee Attacks 1 | . . . 1 Impact . | . . . . Slashing 1 | . . . 1 Piercing . | . . . . Sneak Attacks 1 | . . . 1 Combat Hostiles . | . . . . Follow-up Attacks . | . . . . Damage Inflicted 386 | . 165 . 221 Guns 152 | . 134 . 18 Cannons . | . . . . Explosions 186 | . 31 . 155 Melee 48 | . . . 48 Ramming . | . . . . Kinetic . | . . . . Thermal 31 | . 31 . . Explosive 155 | . . . 155 Electromagnetic 152 | . 134 . 18 Impact . | . . . . Slashing 48 | . . . 48 Piercing . | . . . . Highest Corruption . | . . . . Average Corruption . | . . . . Corruption Purged . | . . . . Corruption Blocked . | . . . . Overload Shots . | . . . . Overflow Damage 23 | . 23 . . Projectiles . | . . . . Explosions 23 | . 23 . . Melee . | . . . . Knockbacks . | . . . . Impact . | . . . . Kinetic . | . . . . Secondary . | . . . . Self-Inflicted Damage 87 | . 87 . . Shots 2 | . 2 . . Rammed . | . . . . Targets Rammed . | . . . . Kicked . | . . . . Crushed . | . . . . Highest Temperature 36 | . 36 . . Average Temperature 17 | . 17 . . Received Heat Transfer 48 | . . . 48 Siege Activations . | . . . . Robots Corrupted . | . . . . Combat Hostiles . | . . . . Parts Fried 2 | . 2 . . Impact Corruptions . | . . . . Robots Melted . | . . . . Combat Hostiles . | . . . . Parts Melted . | . . . . Heat Transferred 50 | . 50 . . Parts Sabotaged . | . . . . Parts Stolen . | . . . . Parts Stripped . | . . . . Power Chain Reactions 1 | . 1 . . Missiles Intercepted . | . . . . Alert | -11 -10 -10 -9 ------- Run | Scr Mat Min Mat Peak Influence 127 | . 127 49 82 Initial 49 | . . 49 . Average 34 | . 30 43 17 Maximum Alert Level . | . . . . Low Security (%) 100 | 100 100 100 100 Level 1 . | . . . . Level 2 . | . . . . Level 3 . | . . . . Level 4 . | . . . . Level 5 . | . . . . High Security . | . . . . Max Security . | . . . . Squads Dispatched 2 | . . . 2 Investigation 1 | . . . 1 Extermination . | . . . . Reinforcement 1 | . . . 1 Assault . | . . . . Garrison . | . . . . Intercept . | . . . . Searches Triggered . | . . . . Construction Impeded . | . . . . Haulers Reinforced . | . . . . Active Scanning Responses . | . . . . Cargo Convoy Interrupts . | . . . . Stealth | -11 -10 -10 -9 --------- Run | Scr Mat Min Mat Distress Signals 3 | . . . 3 Communications Jammed . | . . . . Distress Signals . | . . . . Times Spotted 12 | . 3 . 9 Peak Tracking Total 6 | . 1 . 6 Tactical Retreats . | . . . . Traps | -11 -10 -10 -9 ------- Run | Scr Mat Min Mat Traps Triggered . | . . . . Indirectly . | . . . . Trap Hack Attempts . | . . . . Triggered . | . . . . Disarmed . | . . . . Reprogrammed . | . . . . Reused . | . . . . Traps Extracted . | . . . . Installed . | . . . . Triggered . | . . . . Machines | -11 -10 -10 -9 ---------- Run | Scr Mat Min Mat Machines Disabled 1 | . 1 . . Max in Single Turn 1 | . 1 . . Machines Sabotaged . | . . . . Garrisons Compromised . | . . . . Overloaded Fab Kills . | . . . . Hacking | -11 -10 -10 -9 --------- Run | Scr Mat Min Mat Machines Accessed 2 | . 1 . 1 Terminals 2 | . 1 . 1 Fabricators . | . . . . Repair Stations . | . . . . Recycling Units . | . . . . Scanalyzers . | . . . . Garrison Access . | . . . . Total Hacks 4 | . 1 . 3 Successful 3 | . 1 . 2 Failed 1 | . . . 1 Catastrophic . | . . . . Database Lockouts . | . . . . Manual . | . . . . Terminals 4 | . 1 . 3 Fabricators . | . . . . Repair Stations . | . . . . Recycling Units . | . . . . Scanalyzers . | . . . . Garrison Access . | . . . . Terminal Hacks 3 | . 1 . 2 Investigation Status 1 | . . . 1 Hauler Manifests 1 | . 1 . . Zone Layout 1 | . . . 1 Fabricator Hacks . | . . . . Repair Station Hacks . | . . . . Recycling Unit Hacks . | . . . . Scanalyzer . | . . . . Garrison Access Hacks . | . . . . Unauthorized Hacks . | . . . . Terminals . | . . . . Fabricators . | . . . . Repair Stations . | . . . . Recycling Units . | . . . . Scanalyzers . | . . . . Garrison Access . | . . . . Data Cores Recovered . | . . . . Used . | . . . . Hacking Detections 1 | . . . 1 Full Trace Events 1 | . . . 1 Feedback Events . | . . . . Feedback Blocked . | . . . . Robot Schematics Acquired . | . . . . Robots Built . | . . . . Authchips . | . . . . Time . | . . . . Total Robot Build Rating . | . . . . Part Schematics Acquired . | . . . . Parts Built . | . . . . Authchips . | . . . . Time . | . . . . Total Part Build Rating . | . . . . Parts Repaired . | . . . . Time . | . . . . Parts Recycled . | . . . . Recycled Matter . | . . . . Retrieved Matter . | . . . . Retrieved Components . | . . . . Parts Scanalyzed . | . . . . Part Schematics Acquired . | . . . . Parts Damaged . | . . . . Bothacking | -11 -10 -10 -9 ------------ Run | Scr Mat Min Mat Used RIF Installer . | . . . . Robots Hacked . | . . . . Non-combat . | . . . . Combat . | . . . . Robot Hacks Applied . | . . . . Relay Couplers Released . | . . . . Fabnet Peak Effective % . | . . . . Robots Rewired . | . . . . Allies Hacked . | . . . . Hacks Repelled . | . . . . Allies | -11 -10 -10 -9 -------- Run | Scr Mat Min Mat Total Allies . | . . . . Largest Group . | . . . . Highest-Rated Group . | . . . . Highest-Rated Ally . | . . . . Total Orders . | . . . . Ally Attacks . | . . . . Total Damage . | . . . . Kills . | . . . . Allies Corrupted . | . . . . Allies Melted . | . . . . Intel | -11 -10 -10 -9 ------- Run | Scr Mat Min Mat Robot Analysis Total . | . . . . Derelict Logs Recovered . | . . . . Drone Launches . | . . . . Drone Recoveries . | . . . . Exploration | -11 -10 -10 -9 ------------- Run | Scr Mat Min Mat Turns Passed 817 | 47 217 450 103 Spaces Moved 596 | 44 143 335 74 Core 24 | 24 . . . Treads . | . . . . Legs 572 | 20 143 335 74 Wheels . | . . . . Hover . | . . . . Flight . | . . . . Fastest Speed 50 | 50 120 120 120 Average Speed 117 | 81 120 120 120 Slowest Speed 120 | 120 120 120 120 Overloaded Moves . | . . . . Propulsion Burnouts . | . . . . Robots Hopped . | . . . . Cave-ins Triggered . | . . . . Exploration Rate (%) 25 | 3 23 63 11 Regions Visited 3 Branch Regions 1 Pre-discovered Areas 1 | . . 1 . Known Exits Taken 1 | . . 1 . Unknown Exits Taken 2 | 1 1 . . Scrap Searched 2 | . . 2 . Spaces Dug . | . . . . Terrain Destroyed 17 | . 12 . 5 Melee . | . . . . Projectile . | . . . . AOE 17 | . 12 . 5 Terrain Rammed . | . . . . Walls Destroyed . | . . . . Machines Disabled . | . . . . Actions | -11 -10 -10 -9 --------- Run | Scr Mat Min Mat Total 697 | 55 178 382 82 Wait 63 | . 18 45 . Move 593 | 43 142 334 74 Hop . | . . . . Pick Up 18 | 6 9 2 1 Fast Attach . | . . . . Attach 10 | 6 2 . 2 Detach . | . . . . Swap 3 | . 1 1 1 Drop 1 | . 1 . . Fire 8 | . 5 . 3 Melee 1 | . . . 1 Ram . | . . . . Kick . | . . . . Crush . | . . . . Escape Stasis . | . . . . Rewire . | . . . . Trap . | . . . . Miscellaneous . | . . . . Route ------- -11/Scrapyard -10/Materials -10/Mines (discovered 2 exits: *Mat x2) -9/Materials History --------- Turn | Location | Event 28 | -11/Scrapyard | Discovered new exit (range 14) 48 | -11/Scrapyard | Entered Materials 190 | -10/Materials | Discovered new exit (range 8) 265 | -10/Materials | Entered Mines 317 | -10/Mines | Build established: Mutant 419 | -10/Mines | Learned location of Storage (-7) 421 | -10/Mines | Discovered new exit (range 7) 519 | -10/Mines | Discovered new exit (range 11) 568 | -10/Mines | Identified exit to Materials 715 | -10/Mines | Entered Materials 715 | -9/Materials | Evolved 2 slots: Propulsion x1, Utility x1 818 | -9/Materials | Self-destructed Last Messages --------------- >>Enumerate(Investigations) Retrieving latest reported positions... No active investigation squads found. >>Layout(Zone) Retrieving Zone 3H layout... Downloaded map data. 00768_ ALERT: Suspicious activity at Terminal M001. Dispatching Investigation squad. 00791_ W-16 Scout sends out distress signal. 00798_ K-01 Serf collects debris. 00807_ W-16 Scout destroyed. 00807_ S-10 Pest destroyed. 00807_ U-05 Engineer lays Concrete. 00810_ Sneak attack on R-06 Scavenger. 00810_ R-06 Scavenger destroyed. 00811_ U-05 Engineer lays Concrete. 00813_ Acquired 40 matter. 00813_ U-05 Engineer lays Concrete. 00814_ Sensor Array destroyed. 00814_ U-05 Engineer lays Concrete. Map ----- +----------------------------------------------------+ | ????????????????????????????????????????????????? | | ????????????????????????????????????????????????? | | ????????????????????????????????????????????????? | | ????????????????????????????????????????????????? | | ????????????????????????????????????????????????? | | ????????????????????????????????????????????????? | | ????????? ???????????????????????????????????? | | ???????# #??????????????????????????????????? | | # "Y" # #?# #??????????????????????? | | # """ #=! #?# """ """ #??????????????????????? | | ########= #?# """ """ #??????????????????????? | | ???????# #?# """ """ #??????????????????????? | | ???????# #?# #??????????????????????? | | ???????# ##############?????????????????????? | | ???????# # #?????????????????????? | | ???????# ## #######?? ????????????? | | ???????# "T" ## """ # #? ????????????? | | ???????# ## """ "" # #g ?????????????? | | ???????####/## """ Y" # w ??????????????? | | ??????????# ### "" # #???????????????? | | ??????????# #?# # ??? #???????????? | | ??????????# #?######o#### ### ###?????????? | | ??????????# ####### g ?????????? | | ########### T =% ????????? | | # # ug ! ????????? | | # # ]] u@%% ##?????????????? | | # """ # ]* = #??????????????? | | # """ + *%= +??????????????? | | # """ " # #############??????????????? | | # T # # #???????????????????? | | # " #![! """ # #???????????????????? | | # #!! """ # """ #???????????????????? | | ###########!! """ / """ #???????????????????? | | ??????# # """ #???????????????????? | | ??????# # #???????????????????? | | ??????# ########???????????????????? | | ??????####+####### #??????????????????????????? | | ???????# ## #??????????????????????????? | | ???????# """"" ## #??????????????????????????? | | ???????# """"" ## #??????????????????????????? | | ???????# """"" ## #??????????????????????????? | | ???????# ## ???????????????????????????? | | ???????# ## ???????????????????????????? | | ???????#== ## ???????????????????????????? | | ???????#= #? ???????????????????????????? | | ???????#=] #???????????????????????????????? | | ???????##########???????????????????????????????? | | ????????????????????????????????????????????????? | | ????????????????????????????????????????????????? | | ????????????????????????????????????????????????? | +----------------------------------------------------+ Best States ------------- Heat Dissipation 28 Energy Generation 10 Energy Capacity 250 Matter Stores 300 Matter Capacity 300 Sight Range 16 Robot Scan Range 14 Terrain Scan Density 10 Evasion (%) 55 Item Schematics ----------------- None Robot Schematics ------------------ None Fabricated ------------ Nothing Alien Tech Used ----------------- None Achievements -------------- None Challenges ------------ None Game ------ Seed ShieldTransmissionDetonator Manual? 0 Play Time 00:05:57 Cumulative 35.1 hours Start 2022.03.24 @ 09:19:25 End 2022.03.24 @ 09:25:05 Sessions 1 Manual Loads 0 Difficulty Rogue Special Mode None Game No. 105 Rogue 105 Adventurer 0 Explorer 0 Win Type - Total 0 Types 0/0/0/0/0/0/0/0/0 Lore% 31 Gallery% 43 Achievement% 33 Wizard Run 0 Options --------- ASCII 0 Keyboard 0 Movement Arrows Keybinds 0 Fullscreen 1 Font 18/SmallcapsGlow Map View 76x50 Tactical HUD 1 Map Filters NONE Filters NONE Steam 1 RUN: 8c1d675d-d98b-4a15-aba7-176a5e47e2b8